[Event "Early-Titled-Tuesday-Blitz-April-23-2024"]
[Site "Chess.com"]
[Date "2024.04.23"]
[Round "8"]
[White "PolandHussars"]
[Black "BallottiLuca"]
[Result "1-0"]
[WhiteElo "2585"]
[BlackElo "2383"]
[TimeControl "180+1"]
[EndTime "9:28:10 PDT"]
[Termination "PolandHussars won by resignation"]

1. e4 {[%clk 0:03:00.9]} 1... e5 {[%clk 0:02:59.7]} 2. Nc3 {[%clk 0:03:00.1]}
2... Nf6 {[%clk 0:02:58.7]} 3. g3 {[%clk 0:02:59.1]} 3... Bc5 {[%clk 0:02:55.6]}
4. Bg2 {[%clk 0:02:58.5]} 4... Nc6 {[%clk 0:02:55.2]} 5. Nge2 {[%clk 0:02:57.5]}
5... a6 {[%clk 0:02:55.4]} 6. O-O {[%clk 0:02:56.4]} 6... d6 {[%clk 0:02:56.1]}
7. d3 {[%clk 0:02:55.5]} 7... Be6 {[%clk 0:02:54.1]} 8. h3 {[%clk 0:02:54]} 8...
Qd7 {[%clk 0:02:52.8]} 9. Kh2 {[%clk 0:02:54.5]} 9... h5 {[%clk 0:02:51.7]} 10.
Nd5 {[%clk 0:02:43.2]} 10... Nd4 {[%clk 0:02:52]} 11. Nxd4 {[%clk 0:02:39]}
11... Bxd4 {[%clk 0:02:49.7]} 12. Nxf6+ {[%clk 0:02:39.2]} 12... gxf6 {[%clk
0:02:49.1]} 13. c3 {[%clk 0:02:38.3]} 13... Ba7 {[%clk 0:02:43.5]} 14. f4 {[%clk
0:02:38.2]} 14... O-O-O {[%clk 0:02:37.5]} 15. f5 {[%clk 0:02:37.4]} 15... Rdg8
{[%clk 0:02:30.1]} 16. Qf3 {[%clk 0:02:29.7]} 16... Qe8 {[%clk 0:02:00.2]} 17.
fxe6 {[%clk 0:02:28.6]} 17... fxe6 {[%clk 0:02:01.1]} 18. Be3 {[%clk 0:02:24.7]}
18... Bb8 {[%clk 0:01:57.1]} 19. Qxf6 {[%clk 0:02:21.6]} 19... Rg6 {[%clk
0:01:55.4]} 20. Qf7 {[%clk 0:02:19.6]} 20... Qxf7 {[%clk 0:01:50.9]} 21. Rxf7
{[%clk 0:02:19.5]} 21... Rhg8 {[%clk 0:01:51.6]} 22. Bf2 {[%clk 0:02:19.4]}
22... c6 {[%clk 0:01:51.1]} 23. Bf3 {[%clk 0:02:17.3]} 23... Bc7 {[%clk
0:01:51.1]} 24. Bxh5 {[%clk 0:02:15.7]} 24... Rg5 {[%clk 0:01:51.6]} 25. g4
{[%clk 0:02:15.5]} 25... Bd8 {[%clk 0:01:49.5]} 26. Be3 {[%clk 0:02:12.3]} 26...
R5g7 {[%clk 0:01:47.2]} 27. Raf1 {[%clk 0:02:09.6]} 1-0

[Event "Early-Titled-Tuesday-Blitz-April-23-2024"]
[Site "Chess.com"]
[Date "2024.04.23"]
[Round "8"]
[White "GalaxyRoman"]
[Black "Javadovvv"]
[Result "1/2-1/2"]
[WhiteElo "2782"]
[BlackElo "2659"]
[TimeControl "180+1"]
[EndTime "9:28:17 PDT"]
[Termination "Game drawn by repetition"]

1. e4 {[%clk 0:02:55.1]} 1... e6 {[%clk 0:03:00]} 2. d4 {[%clk 0:02:53.5]} 2...
d5 {[%clk 0:03:00.6]} 3. exd5 {[%clk 0:02:53.9]} 3... exd5 {[%clk 0:03:01.5]} 4.
Nf3 {[%clk 0:02:54.6]} 4... Nf6 {[%clk 0:03:02]} 5. Bd3 {[%clk 0:02:52.7]} 5...
Bd6 {[%clk 0:03:02.7]} 6. c3 {[%clk 0:02:53.1]} 6... O-O {[%clk 0:03:02.7]} 7.
O-O {[%clk 0:02:53.7]} 7... Bg4 {[%clk 0:03:02.2]} 8. h3 {[%clk 0:02:54.1]} 8...
Bh5 {[%clk 0:03:02.3]} 9. Re1 {[%clk 0:02:53.7]} 9... Nbd7 {[%clk 0:03:02.1]}
10. Nbd2 {[%clk 0:02:52.2]} 10... c6 {[%clk 0:03:02.4]} 11. Nf1 {[%clk 0:02:51]}
11... Qc7 {[%clk 0:03:01.7]} 12. Bg5 {[%clk 0:02:46.2]} 12... Rfe8 {[%clk
0:03:01.9]} 13. Ne3 {[%clk 0:02:43.5]} 13... Bg6 {[%clk 0:03:01.4]} 14. Bxf6
{[%clk 0:02:41.3]} 14... Nxf6 {[%clk 0:03:00.2]} 15. Bxg6 {[%clk 0:02:41.9]}
15... hxg6 {[%clk 0:03:01.1]} 16. Qc2 {[%clk 0:02:41.6]} 16... Re7 {[%clk
0:03:00]} 17. Ng4 {[%clk 0:02:38]} 17... Rae8 {[%clk 0:02:54.5]} 18. Rxe7 {[%clk
0:02:35.1]} 18... Rxe7 {[%clk 0:02:53.9]} 19. Re1 {[%clk 0:02:35.6]} 19... Rxe1+
{[%clk 0:02:53.1]} 20. Nxe1 {[%clk 0:02:36.5]} 20... Qe7 {[%clk 0:02:53.5]} 21.
Nf3 {[%clk 0:02:35.2]} 21... Nxg4 {[%clk 0:02:51.6]} 22. hxg4 {[%clk 0:02:36.1]}
22... Qe6 {[%clk 0:02:49.5]} 23. g5 {[%clk 0:02:33.5]} 23... Qe7 {[%clk
0:02:43.6]} 24. Qd2 {[%clk 0:02:31.5]} 24... Qe4 {[%clk 0:02:43.4]} 25. Qe1
{[%clk 0:02:22.2]} 25... Bf4 {[%clk 0:02:36.6]} 26. Kf1 {[%clk 0:01:57.8]} 26...
Qd3+ {[%clk 0:02:34]} 27. Kg1 {[%clk 0:01:54.4]} 27... Qe4 {[%clk 0:02:34.2]}
28. Kf1 {[%clk 0:01:35.1]} 28... Qd3+ {[%clk 0:02:34]} 29. Kg1 {[%clk 0:01:15]}
29... Qe4 {[%clk 0:02:33.7]} 1/2-1/2

[Event "Early-Titled-Tuesday-Blitz-April-23-2024"]
[Site "Chess.com"]
[Date "2024.04.23"]
[Round "8"]
[White "Lily_Schirmbeck"]
[Black "ChessMA48"]
[Result "0-1"]
[WhiteElo "1632"]
[BlackElo "2300"]
[TimeControl "180+1"]
[EndTime "9:28:18 PDT"]
[Termination "ChessMA48 won by resignation"]

1. e4 {[%clk 0:02:58.8]} 1... e5 {[%clk 0:02:56]} 2. Nf3 {[%clk 0:02:58.5]} 2...
Nc6 {[%clk 0:02:53.4]} 3. d4 {[%clk 0:02:57.6]} 3... exd4 {[%clk 0:02:52.6]} 4.
Bc4 {[%clk 0:02:58.2]} 4... Nf6 {[%clk 0:02:51.5]} 5. O-O {[%clk 0:02:58.3]}
5... d6 {[%clk 0:02:36.4]} 6. Nxd4 {[%clk 0:02:55.9]} 6... Ne5 {[%clk
0:02:34.9]} 7. Bb3 {[%clk 0:02:50.6]} 7... Be7 {[%clk 0:02:33.7]} 8. Re1 {[%clk
0:02:46.2]} 8... O-O {[%clk 0:02:32.5]} 9. Nc3 {[%clk 0:02:43.2]} 9... a6 {[%clk
0:02:25.4]} 10. Bf4 {[%clk 0:02:40.4]} 10... c5 {[%clk 0:02:24.5]} 11. Bxe5
{[%clk 0:02:31.3]} 11... dxe5 {[%clk 0:02:22.4]} 12. Nf5 {[%clk 0:02:26.8]}
12... Bxf5 {[%clk 0:02:20.2]} 13. exf5 {[%clk 0:02:26.8]} 13... Qc7 {[%clk
0:02:19.6]} 14. Qf3 {[%clk 0:02:16.5]} 14... c4 {[%clk 0:02:19.3]} 15. Bxc4
{[%clk 0:02:04.9]} 15... Qxc4 {[%clk 0:02:18.4]} 16. Qxb7 {[%clk 0:02:05]} 16...
Bb4 {[%clk 0:02:11.2]} 17. Re3 {[%clk 0:01:55.6]} 17... Rab8 {[%clk 0:01:48]}
18. Qa7 {[%clk 0:01:40.3]} 18... Bc5 {[%clk 0:01:40.7]} 0-1

[Event "Early-Titled-Tuesday-Blitz-April-23-2024"]
[Site "Chess.com"]
[Date "2024.04.23"]
[Round "8"]
[White "KubaGepard"]
[Black "Incognito_Knight"]
[Result "0-1"]
[WhiteElo "2607"]
[BlackElo "2745"]
[TimeControl "180+1"]
[EndTime "9:28:28 PDT"]
[Termination "Incognito_Knight won by resignation"]

1. d4 {[%clk 0:02:31.5]} 1... Nf6 {[%clk 0:02:57.1]} 2. Nf3 {[%clk 0:02:31.7]}
2... b6 {[%clk 0:02:57.3]} 3. g3 {[%clk 0:02:31.4]} 3... Bb7 {[%clk 0:02:57.8]}
4. Bg2 {[%clk 0:02:32.3]} 4... g6 {[%clk 0:02:58.4]} 5. O-O {[%clk 0:02:32.8]}
5... Bg7 {[%clk 0:02:59]} 6. c4 {[%clk 0:02:33.5]} 6... O-O {[%clk 0:02:59.1]}
7. d5 {[%clk 0:02:34.1]} 7... Ne4 {[%clk 0:02:59.5]} 8. Nd4 {[%clk 0:02:33.8]}
8... Nd6 {[%clk 0:02:56.5]} 9. b3 {[%clk 0:02:31.8]} 9... e5 {[%clk 0:02:31.5]}
10. dxe6 {[%clk 0:02:27.1]} 10... Bxg2 {[%clk 0:02:20.8]} 11. Kxg2 {[%clk
0:02:28]} 11... c5 {[%clk 0:02:19.9]} 12. Nc2 {[%clk 0:02:27.9]} 12... dxe6
{[%clk 0:02:07.7]} 13. Bf4 {[%clk 0:02:21.3]} 13... Nf5 {[%clk 0:01:58.6]} 14.
Qxd8 {[%clk 0:02:10.8]} 14... Rxd8 {[%clk 0:01:59.5]} 15. Nba3 {[%clk
0:02:08.3]} 15... Bxa1 {[%clk 0:01:58.3]} 16. Rxa1 {[%clk 0:02:09.2]} 16... Nc6
{[%clk 0:01:53.5]} 17. e3 {[%clk 0:02:02.8]} 17... f6 {[%clk 0:01:40.8]} 18. e4
{[%clk 0:01:59.1]} 18... Nfd4 {[%clk 0:01:39.6]} 19. Nxd4 {[%clk 0:01:56.2]}
19... Nxd4 {[%clk 0:01:36.5]} 20. Rd1 {[%clk 0:01:53]} 20... Ne2 {[%clk
0:01:30.4]} 21. Rxd8+ {[%clk 0:01:49.2]} 21... Rxd8 {[%clk 0:01:31.3]} 22. Be3
{[%clk 0:01:48.7]} 22... Nc3 {[%clk 0:01:27.4]} 0-1

[Event "Early-Titled-Tuesday-Blitz-April-23-2024"]
[Site "Chess.com"]
[Date "2024.04.23"]
[Round "8"]
[White "JacksterThePro"]
[Black "Airquake"]
[Result "0-1"]
[WhiteElo "2486"]
[BlackElo "2664"]
[TimeControl "180+1"]
[EndTime "9:28:54 PDT"]
[Termination "Airquake won by resignation"]

1. Nf3 {[%clk 0:03:00.9]} 1... c5 {[%clk 0:02:59.7]} 2. c4 {[%clk 0:02:50.5]}
2... g6 {[%clk 0:02:58.6]} 3. Nc3 {[%clk 0:02:44.7]} 3... Bg7 {[%clk 0:02:58.6]}
4. e3 {[%clk 0:02:45.2]} 4... Nf6 {[%clk 0:02:58.6]} 5. d4 {[%clk 0:02:45]} 5...
cxd4 {[%clk 0:02:59.1]} 6. exd4 {[%clk 0:02:42.4]} 6... d5 {[%clk 0:02:59.5]} 7.
cxd5 {[%clk 0:02:40.7]} 7... Nxd5 {[%clk 0:02:58.7]} 8. Bb5+ {[%clk 0:02:40.8]}
8... Nc6 {[%clk 0:02:58.5]} 9. O-O {[%clk 0:02:38.2]} 9... O-O {[%clk 0:02:58]}
10. h3 {[%clk 0:02:30.6]} 10... Bf5 {[%clk 0:02:49.4]} 11. Re1 {[%clk
0:02:26.2]} 11... Ncb4 {[%clk 0:02:33.7]} 12. Ba4 {[%clk 0:01:50.2]} 12... Nd3
{[%clk 0:02:21.5]} 13. Re2 {[%clk 0:01:48.4]} 13... N5f4 {[%clk 0:02:10.5]} 14.
Bd2 {[%clk 0:01:36.3]} 14... Nxb2 {[%clk 0:02:03.4]} 15. Qb3 {[%clk 0:01:28.2]}
15... Nxe2+ {[%clk 0:01:59.1]} 16. Nxe2 {[%clk 0:01:29.1]} 16... Nxa4 {[%clk
0:01:55.3]} 17. Qxa4 {[%clk 0:01:30]} 17... Bd7 {[%clk 0:01:51.7]} 18. Qb3
{[%clk 0:01:28.8]} 18... Bc6 {[%clk 0:01:51.8]} 19. Bg5 {[%clk 0:01:21.2]} 19...
Qd5 {[%clk 0:01:50.5]} 20. Bxe7 {[%clk 0:01:17.1]} 20... Rfe8 {[%clk 0:01:49.1]}
21. Qa3 {[%clk 0:01:14.3]} 21... Qd7 {[%clk 0:01:47.8]} 22. d5 {[%clk 0:01:06]}
22... Qxe7 {[%clk 0:01:41.2]} 0-1

[Event "Early-Titled-Tuesday-Blitz-April-23-2024"]
[Site "Chess.com"]
[Date "2024.04.23"]
[Round "8"]
[White "lamomiajunior"]
[Black "Seochesspie"]
[Result "0-1"]
[WhiteElo "2735"]
[BlackElo "2904"]
[TimeControl "180+1"]
[EndTime "9:29:02 PDT"]
[Termination "Seochesspie won by checkmate"]

1. d4 {[%clk 0:03:00.9]} 1... Nf6 {[%clk 0:03:00]} 2. Nc3 {[%clk 0:03:01]} 2...
d5 {[%clk 0:02:59.7]} 3. Bf4 {[%clk 0:03:01.6]} 3... a6 {[%clk 0:02:58.9]} 4. e3
{[%clk 0:03:02]} 4... e6 {[%clk 0:02:53]} 5. g4 {[%clk 0:03:02.3]} 5... Bb4
{[%clk 0:02:52.5]} 6. Ne2 {[%clk 0:03:02.9]} 6... O-O {[%clk 0:02:52.3]} 7. a3
{[%clk 0:03:03.4]} 7... Bd6 {[%clk 0:02:51.3]} 8. g5 {[%clk 0:03:02.9]} 8... Ne8
{[%clk 0:02:46.7]} 9. h4 {[%clk 0:03:02.5]} 9... c5 {[%clk 0:02:46.7]} 10. Bg2
{[%clk 0:03:01.5]} 10... Nc6 {[%clk 0:02:46.3]} 11. Qd2 {[%clk 0:03:01.6]} 11...
b5 {[%clk 0:02:42.4]} 12. dxc5 {[%clk 0:03:00.8]} 12... Bxc5 {[%clk 0:02:42.5]}
13. h5 {[%clk 0:02:57.6]} 13... Nd6 {[%clk 0:02:34]} 14. b3 {[%clk 0:02:48.7]}
14... Bb7 {[%clk 0:02:29]} 15. g6 {[%clk 0:02:47.9]} 15... Nf5 {[%clk
0:02:22.1]} 16. gxh7+ {[%clk 0:02:42.1]} 16... Kh8 {[%clk 0:02:12.2]} 17. Bh3
{[%clk 0:02:41.7]} 17... Qf6 {[%clk 0:02:07.7]} 18. Rg1 {[%clk 0:02:39.7]} 18...
Ne5 {[%clk 0:02:06.6]} 19. Bxe5 {[%clk 0:02:33.8]} 19... Qxe5 {[%clk 0:02:06.7]}
20. Bxf5 {[%clk 0:02:34.5]} 20... Qxf5 {[%clk 0:02:02.9]} 21. Nd4 {[%clk
0:02:29]} 21... Qf6 {[%clk 0:02:01.9]} 22. f4 {[%clk 0:02:15]} 22... Rfe8 {[%clk
0:01:45]} 23. b4 {[%clk 0:02:11.2]} 23... Bb6 {[%clk 0:01:44.7]} 24. O-O-O
{[%clk 0:02:08.9]} 24... Rac8 {[%clk 0:01:39.3]} 25. Kb2 {[%clk 0:02:08.5]}
25... e5 {[%clk 0:01:31.1]} 26. fxe5 {[%clk 0:02:08.5]} 26... Qxe5 {[%clk
0:01:32]} 27. Qg2 {[%clk 0:02:04.8]} 27... Rxc3 {[%clk 0:01:19.2]} 28. Kxc3
{[%clk 0:02:01.8]} 28... Qxe3+ {[%clk 0:01:19.2]} 29. Kb2 {[%clk 0:01:57.1]}
29... Bxd4+ {[%clk 0:01:19.1]} 30. Kb1 {[%clk 0:01:57.3]} 30... Qc3 {[%clk
0:01:15.9]} 31. Kc1 {[%clk 0:01:57]} 31... Qxa3+ {[%clk 0:01:08.6]} 32. Kd2
{[%clk 0:01:57]} 32... Qe3# {[%clk 0:01:07.9]} 0-1

[Event "Early-Titled-Tuesday-Blitz-April-23-2024"]
[Site "Chess.com"]
[Date "2024.04.23"]
[Round "8"]
[White "manmanlai1"]
[Black "Pasmendjambvirgulptipon98"]
[Result "0-1"]
[WhiteElo "2504"]
[BlackElo "2372"]
[TimeControl "180+1"]
[EndTime "9:29:03 PDT"]
[Termination "Pasmendjambvirgulptipon98 won by resignation"]

1. e4 {[%clk 0:03:00.9]} 1... e5 {[%clk 0:03:00.2]} 2. Nf3 {[%clk 0:03:00.8]}
2... Nc6 {[%clk 0:03:00.9]} 3. Bc4 {[%clk 0:03:01.3]} 3... Nf6 {[%clk
0:02:59.6]} 4. Ng5 {[%clk 0:03:01]} 4... d5 {[%clk 0:02:59.3]} 5. exd5 {[%clk
0:03:01.3]} 5... Na5 {[%clk 0:03:00]} 6. Bb5+ {[%clk 0:03:01.3]} 6... c6 {[%clk
0:03:00.5]} 7. dxc6 {[%clk 0:03:01.3]} 7... bxc6 {[%clk 0:03:01.4]} 8. Qf3
{[%clk 0:03:01.2]} 8... cxb5 {[%clk 0:03:01]} 9. Qxa8 {[%clk 0:03:01]} 9... Qc7
{[%clk 0:03:00.8]} 10. Nc3 {[%clk 0:02:54.8]} 10... a6 {[%clk 0:02:50.9]} 11.
Nd5 {[%clk 0:02:46.3]} 11... Nxd5 {[%clk 0:02:43.8]} 12. Qxd5 {[%clk 0:02:47.2]}
12... Bb7 {[%clk 0:02:42.6]} 13. Qd3 {[%clk 0:02:38.2]} 13... h6 {[%clk
0:02:09.4]} 14. Ne4 {[%clk 0:02:26.2]} 14... Qc6 {[%clk 0:01:46.6]} 15. f3
{[%clk 0:02:21.9]} 15... f5 {[%clk 0:01:40.1]} 16. Ng3 {[%clk 0:02:20.4]} 16...
e4 {[%clk 0:01:39.9]} 17. fxe4 {[%clk 0:02:19.3]} 17... fxe4 {[%clk 0:01:36.9]}
18. Qe2 {[%clk 0:02:19.6]} 18... Bc5 {[%clk 0:01:35.7]} 19. Qh5+ {[%clk
0:02:19.3]} 19... Kd8 {[%clk 0:01:30.8]} 20. d4 {[%clk 0:02:08.8]} 20... exd3
{[%clk 0:01:24.3]} 21. Bg5+ {[%clk 0:02:09.1]} 21... Kc8 {[%clk 0:01:24.6]} 22.
Qg4+ {[%clk 0:01:56.3]} 22... Kb8 {[%clk 0:01:17.2]} 23. Bf4+ {[%clk 0:01:54.7]}
23... Ka8 {[%clk 0:01:16.1]} 24. c3 {[%clk 0:01:40.6]} 24... Re8+ {[%clk
0:01:12.4]} 25. Kd1 {[%clk 0:01:39.9]} 25... Qxg2 {[%clk 0:01:09.8]} 0-1

[Event "Early-Titled-Tuesday-Blitz-April-23-2024"]
[Site "Chess.com"]
[Date "2024.04.23"]
[Round "8"]
[White "NM_Antelacus"]
[Black "yonaltimur"]
[Result "0-1"]
[WhiteElo "2255"]
[BlackElo "2401"]
[TimeControl "180+1"]
[EndTime "9:29:06 PDT"]
[Termination "yonaltimur won by resignation"]

1. e4 {[%clk 0:03:00.9]} 1... c5 {[%clk 0:02:47.9]} 2. Nc3 {[%clk 0:02:59.8]}
2... Nc6 {[%clk 0:02:41.9]} 3. g3 {[%clk 0:03:00.1]} 3... g6 {[%clk 0:02:39.5]}
4. Bg2 {[%clk 0:03:00.3]} 4... Bg7 {[%clk 0:02:38.7]} 5. d3 {[%clk 0:03:00.9]}
5... d6 {[%clk 0:02:33]} 6. f4 {[%clk 0:03:00.6]} 6... e6 {[%clk 0:02:32.3]} 7.
Nf3 {[%clk 0:03:00.1]} 7... Nge7 {[%clk 0:02:32.2]} 8. O-O {[%clk 0:02:59.8]}
8... O-O {[%clk 0:02:30.9]} 9. Be3 {[%clk 0:02:58.6]} 9... Nd4 {[%clk
0:02:29.4]} 10. Qd2 {[%clk 0:02:57.6]} 10... Nec6 {[%clk 0:02:27.1]} 11. Rab1
{[%clk 0:02:56.7]} 11... f5 {[%clk 0:02:26.2]} 12. Ne2 {[%clk 0:02:52]} 12... e5
{[%clk 0:02:21.5]} 13. c3 {[%clk 0:02:47]} 13... Nxe2+ {[%clk 0:02:18.6]} 14.
Qxe2 {[%clk 0:02:46.9]} 14... fxe4 {[%clk 0:01:50.2]} 15. dxe4 {[%clk 0:02:46]}
15... b6 {[%clk 0:01:22.3]} 16. Rbd1 {[%clk 0:02:35.4]} 16... Qc7 {[%clk
0:01:10.8]} 17. Qd2 {[%clk 0:02:23.3]} 17... Rd8 {[%clk 0:01:09.8]} 18. Qd5+
{[%clk 0:02:07.6]} 18... Kh8 {[%clk 0:00:58.8]} 19. Ng5 {[%clk 0:02:06.3]} 19...
Ne7 {[%clk 0:00:53.6]} 20. Nf7+ {[%clk 0:01:58.7]} 20... Kg8 {[%clk 0:00:53.5]}
21. Nh6+ {[%clk 0:01:58]} 21... Kh8 {[%clk 0:00:53.7]} 22. Qg8+ {[%clk 0:01:57]}
22... Nxg8 {[%clk 0:00:50.8]} 0-1

[Event "Early-Titled-Tuesday-Blitz-April-23-2024"]
[Site "Chess.com"]
[Date "2024.04.23"]
[Round "8"]
[White "Zampronha1971"]
[Black "LeRoidesChampions"]
[Result "0-1"]
[WhiteElo "2434"]
[BlackElo "2611"]
[TimeControl "180+1"]
[EndTime "9:29:32 PDT"]
[Termination "LeRoidesChampions won by resignation"]

1. e4 {[%clk 0:02:59.6]} 1... c5 {[%clk 0:02:58.9]} 2. Nf3 {[%clk 0:02:58.8]}
2... e6 {[%clk 0:02:59.4]} 3. d4 {[%clk 0:02:59.5]} 3... cxd4 {[%clk 0:03:00.3]}
4. Nxd4 {[%clk 0:02:59.9]} 4... Nc6 {[%clk 0:02:56.2]} 5. Nc3 {[%clk 0:03:00.3]}
5... Qc7 {[%clk 0:02:55.6]} 6. Be3 {[%clk 0:02:57.6]} 6... a6 {[%clk 0:02:55.4]}
7. Bd3 {[%clk 0:02:55.8]} 7... Nf6 {[%clk 0:02:54.4]} 8. O-O {[%clk 0:02:55.4]}
8... Nxd4 {[%clk 0:02:54.3]} 9. Bxd4 {[%clk 0:02:54.6]} 9... Bc5 {[%clk
0:02:55]} 10. Bxc5 {[%clk 0:02:51.6]} 10... Qxc5 {[%clk 0:02:55.9]} 11. Kh1
{[%clk 0:02:42.6]} 11... d6 {[%clk 0:02:53.8]} 12. f4 {[%clk 0:02:38]} 12... b5
{[%clk 0:02:54]} 13. a3 {[%clk 0:02:35.3]} 13... Bb7 {[%clk 0:02:54]} 14. Qe2
{[%clk 0:02:35.9]} 14... Rd8 {[%clk 0:02:43.9]} 15. Rae1 {[%clk 0:02:29.6]}
15... O-O {[%clk 0:02:43.5]} 16. Qf2 {[%clk 0:02:26.7]} 16... Qxf2 {[%clk
0:02:42.2]} 17. Rxf2 {[%clk 0:02:27.6]} 17... e5 {[%clk 0:02:42.6]} 18. Kg1
{[%clk 0:02:07.3]} 18... Rfe8 {[%clk 0:02:38.1]} 19. f5 {[%clk 0:01:54.4]} 19...
d5 {[%clk 0:02:38.1]} 20. exd5 {[%clk 0:01:38.1]} 20... Nxd5 {[%clk 0:02:38.2]}
21. Nxd5 {[%clk 0:01:37.9]} 21... Bxd5 {[%clk 0:02:39.1]} 22. Rfe2 {[%clk
0:01:33.1]} 22... f6 {[%clk 0:02:39]} 23. Kf2 {[%clk 0:01:30.1]} 23... Rc8
{[%clk 0:02:35]} 24. Ke3 {[%clk 0:01:25.9]} 24... e4 {[%clk 0:02:32.9]} 25. Kf4
{[%clk 0:01:22.7]} 25... g5+ {[%clk 0:02:06.1]} 26. fxg6 {[%clk 0:01:21.4]}
26... hxg6 {[%clk 0:02:06.5]} 27. c3 {[%clk 0:01:14]} 27... g5+ {[%clk
0:02:01.9]} 28. Kg3 {[%clk 0:01:13.5]} 28... f5 {[%clk 0:01:59.7]} 29. h4 {[%clk
0:01:12.2]} 29... Kf7 {[%clk 0:01:55.6]} 30. hxg5 {[%clk 0:01:10.7]} 30... exd3
{[%clk 0:01:47.2]} 31. g6+ {[%clk 0:01:10.7]} 31... Kxg6 {[%clk 0:01:43.4]} 32.
Rxe8 {[%clk 0:01:08.1]} 32... Rxe8 {[%clk 0:01:44.3]} 33. Rxe8 {[%clk
0:01:07.6]} 33... d2 {[%clk 0:01:44.9]} 0-1

[Event "Early-Titled-Tuesday-Blitz-April-23-2024"]
[Site "Chess.com"]
[Date "2024.04.23"]
[Round "8"]
[White "Chernov_Alexander_A"]
[Black "MaxLeto"]
[Result "0-1"]
[WhiteElo "2259"]
[BlackElo "2425"]
[TimeControl "180+1"]
[EndTime "9:29:43 PDT"]
[Termination "MaxLeto won by resignation"]

1. d4 {[%clk 0:03:00.9]} 1... d5 {[%clk 0:03:00.1]} 2. Nf3 {[%clk 0:03:00.5]}
2... Nf6 {[%clk 0:03:00.2]} 3. c4 {[%clk 0:03:00.4]} 3... e6 {[%clk 0:03:00.5]}
4. Nc3 {[%clk 0:02:59.3]} 4... Be7 {[%clk 0:03:00.9]} 5. Bg5 {[%clk 0:02:58.4]}
5... O-O {[%clk 0:03:01.3]} 6. e3 {[%clk 0:02:58.5]} 6... h6 {[%clk 0:03:00.5]}
7. Bh4 {[%clk 0:02:57.2]} 7... b6 {[%clk 0:03:00.2]} 8. cxd5 {[%clk 0:02:50.7]}
8... Nxd5 {[%clk 0:02:58.8]} 9. Bxe7 {[%clk 0:02:49.7]} 9... Nxe7 {[%clk
0:02:58]} 10. Be2 {[%clk 0:02:42.4]} 10... Bb7 {[%clk 0:02:58.3]} 11. O-O {[%clk
0:02:42.1]} 11... Nd7 {[%clk 0:02:58.6]} 12. Rc1 {[%clk 0:02:40]} 12... a6
{[%clk 0:02:58.9]} 13. Qc2 {[%clk 0:02:33.4]} 13... c5 {[%clk 0:02:58.8]} 14.
dxc5 {[%clk 0:02:32.1]} 14... Nxc5 {[%clk 0:02:58.6]} 15. Rfd1 {[%clk
0:02:31.9]} 15... Qe8 {[%clk 0:02:22.6]} 16. Ne5 {[%clk 0:02:23.1]} 16... Rc8
{[%clk 0:02:18.6]} 17. Bf3 {[%clk 0:02:05.9]} 17... Bxf3 {[%clk 0:02:06.4]} 18.
Nxf3 {[%clk 0:02:05.5]} 18... Nc6 {[%clk 0:01:59.1]} 19. Qd2 {[%clk 0:01:55.4]}
19... Qe7 {[%clk 0:01:55.4]} 20. Qd6 {[%clk 0:01:53.6]} 20... Qf6 {[%clk
0:01:47.9]} 21. Qf4 {[%clk 0:01:43.4]} 21... Qxf4 {[%clk 0:01:45.5]} 22. exf4
{[%clk 0:01:43.3]} 22... Rfd8 {[%clk 0:01:42]} 23. Rxd8+ {[%clk 0:01:27.7]}
23... Rxd8 {[%clk 0:01:42.9]} 24. Rd1 {[%clk 0:01:27.8]} 24... Nd3 {[%clk
0:01:35.2]} 25. g3 {[%clk 0:01:06.8]} 25... Nxb2 {[%clk 0:01:32.6]} 26. Rb1
{[%clk 0:01:06.4]} 26... Nc4 {[%clk 0:01:32.6]} 27. a4 {[%clk 0:01:02.1]} 27...
Rd3 {[%clk 0:01:32]} 0-1

[Event "Early-Titled-Tuesday-Blitz-April-23-2024"]
[Site "Chess.com"]
[Date "2024.04.23"]
[Round "8"]
[White "Ziyamammadov"]
[Black "Kaissa10"]
[Result "1-0"]
[WhiteElo "1946"]
[BlackElo "2300"]
[TimeControl "180+1"]
[EndTime "9:29:43 PDT"]
[Termination "Ziyamammadov won by checkmate"]

1. e4 {[%clk 0:03:00.9]} 1... c5 {[%clk 0:02:59.7]} 2. Nf3 {[%clk 0:03:00.6]}
2... Nc6 {[%clk 0:02:58.8]} 3. d4 {[%clk 0:03:01.5]} 3... cxd4 {[%clk 0:02:59]}
4. Nxd4 {[%clk 0:03:02.4]} 4... g6 {[%clk 0:02:59.6]} 5. Nc3 {[%clk 0:03:03.3]}
5... Bg7 {[%clk 0:02:59.4]} 6. Be3 {[%clk 0:03:03.4]} 6... Nf6 {[%clk
0:02:58.7]} 7. f3 {[%clk 0:03:03.5]} 7... O-O {[%clk 0:02:55.7]} 8. Bc4 {[%clk
0:03:03.9]} 8... Qb6 {[%clk 0:02:04.8]} 9. Qd2 {[%clk 0:02:25.9]} 9... Nxe4
{[%clk 0:01:56]} 10. Nxe4 {[%clk 0:02:17.7]} 10... Bxd4 {[%clk 0:01:47.7]} 11.
Bxd4 {[%clk 0:02:08.4]} 11... Nxd4 {[%clk 0:01:23.2]} 12. c3 {[%clk 0:02:07.7]}
12... Nc6 {[%clk 0:00:55.4]} 13. Qh6 {[%clk 0:01:47.2]} 13... Qxb2 {[%clk
0:00:06.7]} 14. Rc1 {[%clk 0:01:42.6]} 14... e6 {[%clk 0:00:03.5]} 15. Nf6+
{[%clk 0:01:41.1]} 15... Kh8 {[%clk 0:00:03.4]} 16. Qxh7# {[%clk 0:01:42]} 1-0